fUST/lending_fUST_20251230
["ID","MTS","AMOUNT","RATE_DAILY","PERIOD"]
[400077152,1767071447602,-5000.0,0.00033697,15]
[400077153,1767071447611,-1391.47,0.00033698,35]
[400077154,1767071447621,-250.0,0.00033699,5]
[400077155,1767071447631,-584.51,0.000337,7]
[400077156,1767071447641,-12465.83,0.000337,10]
[400077157,1767071447650,-15279.06072301,0.00033805,2]
[400077158,1767071447659,-5000.0,0.00033899,15]
[400077159,1767071447669,-527.92214701,0.000339,120]
[400077160,1767071447678,-465.18926066,0.000339,120]
[400077161,1767071447687,-696.99855369,0.000339,120]
[400077162,1767071447696,-650.8504817,0.000339,120]
[400077163,1767071447706,-182.30117202,0.000339,120]
[400077164,1767071447715,-539.16140886,0.000339,120]
[400077165,1767071447723,-469.51361326,0.000339,120]
[400077166,1767071447732,-541.02927458,0.000339,120]
[400077167,1767071447742,-1157.42344862,0.000339,120]
[400077168,1767071447751,-5000.0,0.00033921,15]
[400077169,1767071447761,-513.80226967,0.00033969,2]
[400077170,1767071447771,-1500.0,0.00033973,5]
[400077171,1767071447780,-5000.0,0.00033998,14]
[400077172,1767071447789,-1016.0,0.00034,7]
[400077173,1767071447799,-1000.0,0.000341,16]
[400077174,1767071447808,-5000.0,0.00034187,9]
[400077175,1767071447817,-2000.0,0.0003419,7]
[400077176,1767071447826,-5000.0,0.00034245,15]
[400077177,1767071447835,-1391.47,0.00034246,36]
[400077178,1767071447844,-285.68,0.00034275,30]
[400077179,1767071447854,-15279.06072301,0.0003432,2]
[400077180,1767071447863,-1374.592,0.00034341,2]
[400077181,1767071447872,-674.459,0.00034341,2]
[400077182,1767071447881,-2219.236,0.00034341,2]
[400077183,1767071447891,-5000.0,0.00034398,10]
[400077184,1767071447901,-351.09879697,0.00034418,2]
[400077185,1767071447911,-5000.0,0.00034439,15]
[400077186,1767071447920,-21201.1084,0.0003444,30]
[400077187,1767071447929,-10376.51,0.000345,14]
[400077188,1767071447939,-194.9321517,0.00034518,2]
[400077189,1767071447948,-23419.2338118,0.00034518,2]
[400077190,1767071447958,-5000.0,0.0003452,5]
[400077191,1767071447967,-350.0,0.00034521,5]
[400077192,1767071447976,-737.43404646,0.00034521,5]
[400077193,1767071447986,-188.0,0.00034521,30]
[400077194,1767071447995,-315.61748423,0.00034528,25]
[400077195,1767071448004,-5000.0,0.00034553,15]
[400077196,1767071448014,-5000.0,0.00034598,15]
[400077197,1767071448024,-5000.0,0.00034599,15]
[400077198,1767071448034,-163.28,0.000346,2]
[400077199,1767071448043,-1000.0,0.000346,16]
[400077200,1767071448052,-5000.0,0.00034608,2]
[400077201,1767071448062,-5000.0,0.00034649,4]
[400077202,1767071448072,-5000.0,0.00034649,7]
[400077203,1767071448081,-5000.0,0.00034649,6]
[400077204,1767071448091,-260.43714474,0.00034649,7]
[400077205,1767071448100,-500.0,0.00034649,7]
[400077206,1767071448109,-250.0,0.00034649,7]
[400077207,1767071448119,-496.47127164,0.00034649,7]
[400077208,1767071448128,-500.0,0.00034649,7]
[400077209,1767071448139,-264.27926234,0.00034649,7]
[400077210,1767071448148,-514.84070869,0.00034649,7]
[400077211,1767071448158,-500.0,0.00034649,7]
[400077212,1767071448168,-431.95893429,0.00034649,7]
[400077213,1767071448177,-2398.4119403,0.00034649,7]
[400077214,1767071448186,-183.51906813,0.00034649,7]
[400077215,1767071448197,-2487.15318209,0.00034649,7]
[400077216,1767071448206,-173.38646824,0.00034649,7]
[400077217,1767071448216,-152.94870132,0.00034649,7]
[400077218,1767071448225,-151.0,0.00034649,7]
[400077219,1767071448238,-151.0,0.00034649,7]
[400077220,1767071448247,-500.0,0.00034649,7]
[400077221,1767071448257,-151.0,0.00034649,7]
[400077222,1767071448266,-500.0,0.00034649,7]
[400077223,1767071448277,-151.0,0.00034649,7]
[400077224,1767071448287,-530.52894229,0.00034649,7]
[400077225,1767071448297,-151.0,0.00034649,7]
[400077226,1767071448309,-151.0,0.00034649,7]
[400077227,1767071448319,-151.0,0.00034649,7]
[400077228,1767071448329,-151.0,0.00034649,7]
[400077229,1767071448339,-151.0,0.00034649,7]
[400077230,1767071448349,-151.0,0.00034649,7]
[400077231,1767071448358,-151.0,0.00034649,7]
[400077232,1767071448368,-151.0,0.00034649,7]
[400077233,1767071448378,-151.0,0.00034649,7]
[400077234,1767071448388,-151.0,0.00034649,7]
[400077235,1767071448397,-151.0,0.00034649,7]
[400077236,1767071448407,-166.0,0.0003465,7]
[400077237,1767071448417,-166.0,0.0003465,7]
[400077238,1767071448426,-166.0,0.0003465,7]
[400077239,1767071448436,-152.0,0.0003465,7]
[400077240,1767071448446,-166.0,0.0003465,7]
[400077241,1767071448455,-163.0,0.0003465,7]
[400077242,1767071448464,-152.0,0.0003465,7]
[400077243,1767071448474,-172.0,0.0003465,7]
[400077244,1767071448483,-184.98755332,0.0003465,7]
[400077245,1767071448492,-152.0,0.0003465,7]
[400077246,1767071448502,-152.93364206,0.0003465,7]
[400077247,1767071448511,-1532.75940136,0.0003465,7]
[400077248,1767071448520,-322.77388723,0.0003465,7]
[400077249,1767071448529,-881.50169224,0.0003465,7]
[400077250,1767071448539,-230.22734311,0.0003465,7]
[400077251,1767071448548,-619.84135623,0.0003465,7]
[400077252,1767071448557,-228.40067414,0.0003465,7]
[400077253,1767071448566,-1826288.6718826,0.0003465,4]
[400077254,1767071448679,-780.29263206,0.0003465,4]
[400077255,1767072007390,10000.0,0.00028767,120]
[400077256,1767072021953,7684.0,0.00028767,120]
[400077275,1767072491990,2113.61303597,0.0001,2]
[400077276,1767072496506,2232.4757664,0.00012971,2]
[400077312,1767072632187,-333.27192926,0.0001307,2]
[400077344,1767072638365,-271.72807074,0.0001307,2]
[400077345,1767072638374,-300.0,0.00013272,2]
[400077346,1767072638384,-81.58888293,0.00013273,2]
[400077347,1767072638399,-265.16894753,0.00013273,2]
[400077348,1767072638409,-199.13796001,0.00013273,2]
[400077349,1767072638420,-503.41612453,0.00013273,2]
[400077350,1767072638429,-365.5282839,0.00013273,2]
[400077351,1767072638439,-301.71144148,0.00013273,2]
[400077352,1767072638449,-150.13370657,0.00013273,2]
[400077353,1767072638458,-217.49202294,0.00013273,2]
[400077354,1767072638468,-304.98119548,0.00013273,2]
[400077355,1767072638477,-202.19630194,0.00013273,2]
[400077356,1767072638487,-319.23326347,0.00013273,2]
[400077357,1767072638496,-204.97300329,0.00013273,2]
[400077358,1767072638507,-205.14,0.00013273,2]
[400077359,1767072638516,-300.0,0.00013331,2]
[400077360,1767072638526,-300.0,0.00013331,2]
[400077361,1767072638535,-300.0,0.00013331,2]
[400077362,1767072638544,-300.0,0.00013331,2]
[400077363,1767072638554,-300.0,0.00013331,2]
[400077364,1767072638564,-300.0,0.00013331,2]
[400077365,1767072638574,-300.0,0.00013331,2]
[400077366,1767072638583,-300.0,0.00013331,2]
[400077367,1767072638593,-300.0,0.00013331,2]
[400077368,1767072638602,-300.0,0.00013331,2]
[400077369,1767072638611,-300.0,0.00013331,2]
[400077370,1767072638621,-300.0,0.00013331,2]
[400077371,1767072638631,-300.0,0.00013331,2]
[400077372,1767072638643,-300.0,0.00013331,2]
[400077373,1767072638653,-300.0,0.00013331,2]
[400077374,1767072638662,-600.0,0.00013331,2]
[400077375,1767072638671,-205.14824824,0.00013547,2]
[400077376,1767072638683,-300.0,0.00013673,2]
[400077377,1767072638692,-500.0,0.00013698,2]
[400077378,1767072638702,-450.7340337,0.00013698,2]
[400077379,1767072638712,-500.0,0.00013698,2]
[400077380,1767072638722,-500.0,0.00013698,2]
[400077381,1767072638731,-500.0,0.00013698,2]
[400077382,1767072638740,-500.0,0.00013698,2]
[400077383,1767072638750,-500.0,0.00013698,2]
[400077384,1767072638760,-285.23543838,0.00013698,2]
[400077385,1767072638769,-500.90024235,0.00013699,2]
[400077386,1767072638778,-501.58622365,0.00013699,2]
[400077387,1767072638788,-158.29914025,0.00013699,2]
[400077388,1767072638798,-500.0,0.00013699,2]
[400077389,1767072638807,-501.41897014,0.00013699,2]
[400077390,1767072638816,-601.6549823,0.00014247,2]
[400077391,1767072638826,-720.0,0.00014664,2]
[400077392,1767072638835,-177.0,0.0001507,2]
[400077393,1767072638845,-157.04,0.0001513,2]
[400077394,1767072638854,-275.104005,0.00015306,2]
[400077395,1767072638863,-1000.0,0.00015309,2]
[400077396,1767072638872,-188.45,0.00015735,2]
[400077397,1767072638882,-7734.2553822,0.00015941,2]
[400077398,1767072638892,-864.0,0.00016131,2]
[400077399,1767072638901,-219.86,0.00016341,2]
[400077400,1767072638911,-157.0,0.000169,2]
[400077401,1767072638920,-157.0,0.000169,2]
[400077402,1767072638929,-251.26,0.00016946,2]
[400077403,1767072638939,-204.0,0.0001707,2]
[400077404,1767072638948,-85.95127406,0.0001727,2]
[400077405,1767072638960,-165.1784823,0.0001727,2]
[400077406,1767072638970,-282.67,0.00017551,2]
[400077407,1767072638979,-93.2375177,0.000176,2]
[400077408,1767072638994,-875.51841339,0.000176,2]
[400077409,1767072639004,-593.1828049,0.00017744,2]
[400077410,1767072639016,-406.8171951,0.00017744,2]
[400077411,1767072639026,-314.08,0.00018156,2]
[400077412,1767072639036,-275.104005,0.00018731,2]
[400077413,1767072639045,-152.71067572,0.00018999,2]
[400077414,1767072639054,-500.0,0.00018999,2]
[400077415,1767072639064,-500.0,0.00018999,2]
[400077416,1767072639073,-603.53895748,0.00018999,2]
[400077417,1767072639082,-571.27828316,0.00018999,2]
[400077418,1767072639091,-500.0,0.00018999,2]
[400077419,1767072639101,-500.0,0.00018999,2]
[400077420,1767072639110,-500.0,0.00018999,2]
[400077421,1767072639119,-500.0,0.00018999,2]
[400077422,1767072639128,-500.0,0.00018999,2]
[400077423,1767072639138,-32478.6240316,0.00019,2]
[400077424,1767072639147,-2603.49,0.00019,2]
[400077425,1767072639156,-17931.50297151,0.00019,2]
[400077426,1767072639165,-231.0,0.0001907,2]
[400077427,1767072639174,-1000.0,0.000191,2]
[400077428,1767072639183,-2075.3,0.000192,2]
[400077429,1767072639192,-166.35,0.000192,2]
[400077430,1767072639201,-1000.0,0.00019518,2]
[400077431,1767072639211,-244.0,0.00019518,2]
[400077432,1767072639222,-157.0,0.000196,2]
[400077433,1767072639231,-157.0,0.000196,2]
[400077434,1767072639241,-4051.49993426,0.0002,2]
[400077435,1767072639251,-591.01520463,0.0002,2]
[400077436,1767072639260,-1841.32280639,0.0002,2]
[400077437,1767072639269,-159.72727124,0.0002,2]
[400077438,1767072639278,-408.09545311,0.0002013,2]
[400077439,1767072639288,-1386.79309123,0.0002061,2]
[400077440,1767072639297,-255.9567997,0.000209,2]
[400077441,1767072639307,-1041.66666667,0.00020979,2]
[400077442,1767072639316,-276.82902314,0.00021,2]
[400077443,1767072639325,-1725.78039166,0.00021,2]
[400077444,1767072639335,-258.0,0.0002107,2]
[400077445,1767072639345,-1000.0,0.0002147,10]
[400077446,1767072639359,-492.0,0.0002147,10]
[400077447,1767072639369,-1037.98500475,0.000215,2]
[400077448,1767072639378,-12835.73724603,0.000215,2]
[400077449,1767072639387,-293.07868979,0.00021917,2]
[400077450,1767072639396,-234.12803578,0.00021917,2]
[400077451,1767072639406,-486.68860623,0.00021917,2]
[400077452,1767072639416,-333.53386394,0.00021917,2]
[400077453,1767072639425,-295.3615361,0.00021917,2]
[400077454,1767072639434,-284.77322952,0.00021917,2]
[400077455,1767072639444,-244.92155031,0.00021917,2]
[400077456,1767072639453,-159.35685397,0.00021917,2]
[400077457,1767072639463,-477.92435001,0.00021917,2]
[400077458,1767072639472,-270.309504,0.00021917,2]
[400077459,1767072639481,-395.6000019,0.00021917,2]
[400077460,1767072639491,-240.65035094,0.00021917,2]
[400077461,1767072639500,-245.12772481,0.00021917,2]
[400077462,1767072639509,-184.4666804,0.00021917,2]
[400077463,1767072639519,-512.29840009,0.00021917,2]
[400077464,1767072639528,-247.18789958,0.00021917,2]
[400077465,1767072639538,-623.80024552,0.00021917,2]
[400077466,1767072639547,-439.94357266,0.00021917,2]
[400077467,1767072639556,-459.6084802,0.00021917,2]
[400077468,1767072639567,-235.91104523,0.00021917,2]
[400077469,1767072639577,-500.0,0.00021917,2]
[400077470,1767072639586,-462.00409973,0.00021917,2]
[400077471,1767072639596,-500.11271977,0.00021917,2]
[400077472,1767072639607,-243.72205938,0.00021917,2]
[400077473,1767072639616,-305.08698484,0.00021917,2]
[400077474,1767072639625,-488.58314338,0.00021917,2]
[400077475,1767072639639,-497.79668019,0.00021917,2]
[400077476,1767072639648,-501.96134471,0.00021917,2]
[400077477,1767072639658,-187.97843564,0.00021917,2]
[400077478,1767072639667,-172.92068737,0.00021917,2]
[400077479,1767072639677,-515.0797842,0.00021917,2]
[400077480,1767072639687,-180.51459048,0.00021917,2]
[400077481,1767072639696,-370.79446807,0.00021917,2]
[400077482,1767072639706,-397.40045629,0.00021917,2]
[400077483,1767072639715,-489.89503158,0.00021917,2]
[400077484,1767072639725,-498.57323041,0.00021917,2]
[400077485,1767072639734,-274.25981133,0.00021917,2]
[400077486,1767072639744,-511.52666721,0.00021917,2]
[400077487,1767072639754,-407.60436582,0.00021917,2]
[400077488,1767072639763,-508.85126358,0.00021917,2]
[400077489,1767072639772,-263.23087091,0.00021917,2]
[400077490,1767072639781,-548.15715932,0.00021917,2]
[400077491,1767072639791,-508.01145599,0.00021917,2]
[400077492,1767072639800,-537.17406189,0.00021917,2]
[400077493,1767072639810,-501.33798859,0.00021917,2]
[400077495,1767072639819,-257.99044972,0.00021917,2]
[400077496,1767072639828,-514.84388318,0.00021917,2]
[400077497,1767072639837,-498.4005384,0.00021917,2]
[400077498,1767072639847,-457.22175295,0.00021917,2]
[400077499,1767072639856,-167.01,0.00022,7]
[400077500,1767072639865,-165.92,0.00022,2]
[400077501,1767072639874,-275.104005,0.00022156,2]
[400077502,1767072639883,-500.0,0.00022191,2]
[400077503,1767072639893,-500.0,0.00022465,2]
[400077504,1767072639902,-1031.5086872,0.000225,2]
[400077505,1767072639911,-501.47115126,0.00022739,2]
[400077506,1767072639920,-285.0,0.0002307,2]
[400077507,1767072639930,-13788.93686352,0.000234,7]
[400077508,1767072639939,-157.0,0.000236,4]
[400077509,1767072639948,-158.49375117,0.000236,5]
[400077510,1767072639957,-1000.0,0.00023617,10]
[400077511,1767072639967,-791.0,0.00023617,10]
[400077512,1767072639976,-2075.3,0.000237,2]
[400077513,1767072639985,-3239.83581211,0.0002387,2]
[400077514,1767072639995,-224.55081306,0.00024066,2]
[400077515,1767072640004,-324890.37446952,0.00024142,2]
[400077538,1767072640555,-7601.8468138,0.00024142,2]
[400077610,1767072672835,-192.6775618,0.00012971,2]
[400077611,1767072675337,-503.11240054,0.00012971,2]
[400077612,1767072676759,-207.30691018,0.00012971,2]
[400077613,1767072680776,-589.57537573,0.00012971,2]
[400077614,1767072682204,-155.7024382,0.00012971,2]
[400077615,1767072683681,-305.91703775,0.00012971,2]
[400077616,1767072685710,-222.83310953,0.00012971,2]
[400077617,1767072690002,-325.2294301,0.00012971,2]
[400077618,1767072691532,-267.36407505,0.00012971,2]
[400077619,1767072694371,-221.47389519,0.00012971,2]
[400077620,1767072695899,-218.71,0.00012971,2]
[400077621,1767072698083,-260.38958332,0.00012971,2]
[400077622,1767072699631,-531.82573339,0.00012971,2]
[400077623,1767072701066,-322.01555826,0.00012971,2]
[400077624,1767072703612,-205.80722223,0.00012971,2]
[400077625,1767072705673,-608.63334278,0.00012971,2]
[400077626,1767072708448,-258.40602491,0.00012971,2]
[400077627,1767072722779,300.0,0.0001297,2]
[400077645,1767072782431,300.0,0.0001297,2]
[400077646,1767072783024,297.0,0.0001297,2]
[400077647,1767072792411,551.0,0.0001297,2]
[400077648,1767072801398,500.0,0.0001297,2]
[400077649,1767072801430,500.0,0.0001297,2]
[400077650,1767072801547,500.0,0.0001297,2]
[400077651,1767072801576,228.08727014,0.0001297,2]
[400077652,1767072801615,500.0,0.0001297,2]
[400077653,1767072801648,500.0,0.0001297,2]
[400077654,1767072801676,500.0,0.0001297,2]
[400077655,1767072811683,500.0,0.0001297,2]
[400077656,1767072811721,258.39004284,0.0001297,2]
[400077657,1767072811763,500.0,0.0001297,2]
[400077658,1767072811813,500.0,0.0001297,2]
[400077659,1767072811842,500.0,0.0001297,2]
[400077660,1767072811870,500.0,0.0001297,2]
[400077661,1767072811897,500.0,0.0001297,2]
[400077662,1767072811926,500.0,0.0001297,2]
[400077663,1767072818221,257.26298173,0.0001297,2]
[400077664,1767072820085,557.17,0.00012747,2]
[400077665,1767072826164,500.0,0.0001297,2]
[400077666,1767072826194,251.09970529,0.0001297,2]
[400077667,1767072826217,248.90029471,0.0001297,2]
[400077668,1767072826248,500.0,0.0001297,2]
[400077669,1767072826280,500.0,0.0001297,2]
[400077670,1767072826320,500.0,0.0001297,2]
[400077671,1767072826350,500.0,0.0001297,2]
[400077672,1767072826389,500.0,0.0001297,2]
[400077673,1767072826422,500.0,0.0001297,2]
[400077674,1767072826456,500.0,0.0001297,2]
[400077675,1767072826493,432.07174856,0.0001297,2]
[400077676,1767072826538,500.0,0.0001297,2]
[400077677,1767072826569,500.0,0.0001297,2]
[400077678,1767072826603,500.0,0.0001297,2]
[400077679,1767072826649,500.0,0.0001297,2]
[400077680,1767072826694,500.0,0.0001297,2]
[400077681,1767072842751,300.0,0.0001297,2]
[400077682,1767072854321,499.99999999,0.0001297,2]
[400077683,1767072859210,500.0,0.0001297,2]
[400077684,1767072859318,567.46673451,0.0001297,2]
[400077685,1767072859458,500.0,0.0001297,2]
[400077686,1767072901522,300.0,0.0001297,2]
[400077687,1767072901953,300.0,0.0001297,2]
[400077688,1767072902093,300.0,0.0001297,2]
[400077689,1767072902251,51.57122223,0.00012276,2]
[400077690,1767072902281,498.50877777,0.00012276,2]
[400077691,1767072902834,1100.16,0.00012861,2]
[400077692,1767072903241,300.0,0.0001297,2]
[400077693,1767072911637,151.0,0.000128,2]
[400077694,1767072911948,151.0,0.000119,2]
[400077695,1767072912253,151.0,0.00011,2]
[400077696,1767072962856,300.0,0.0001297,2]
[400077697,1767072982261,529.08,0.00012336,2]
[400077698,1767072982663,1058.16,0.00012923,2]
[400077699,1767072985833,358.67636335,0.0001297,2]
[400077700,1767072991316,417.59889365,0.0001297,2]
[400077701,1767072994489,180.08408722,0.0001297,2]
[400077702,1767073002773,500.0,0.0001297,2]
[400077703,1767073002890,381.3413054,0.0001297,2]
[400077705,1767073009919,500.0,0.0001297,2]
[400077706,1767073010166,597.22671416,0.0001297,2]
[400077707,1767073022449,300.0,0.0001297,2]
[400077708,1767073026460,500.0,0.0001297,2]
[400077709,1767073026491,500.0,0.0001297,2]
[400077710,1767073026524,500.0,0.0001297,2]
[400077711,1767073026557,500.0,0.0001297,2]
[400077712,1767073026591,500.0,0.0001297,2]
[400077713,1767073026637,26.17385845,0.0001297,2]
[400077714,1767073026665,473.82614155,0.0001297,2]
[400077715,1767073026703,500.0,0.0001297,2]
[400077716,1767073026760,650.26914354,0.0001297,2]
[400077717,1767073034537,500.0,0.0001297,2]
[400077718,1767073034578,500.0,0.0001297,2]
[400077719,1767073034612,500.0,0.0001297,2]
[400077720,1767073034645,500.0,0.0001297,2]
[400077721,1767073034831,606.98269404,0.0001297,2]
[400077722,1767073034933,500.0,0.0001297,2]
[400077723,1767073034963,500.0,0.0001297,2]
[400077724,1767073035359,500.0,0.0001297,2]
[400077725,1767073035567,500.0,0.0001297,2]
[400077726,1767073048460,671.12690821,0.0001295,2]
[400077727,1767073059186,949.40543524,0.0001295,2]
[400077728,1767073061372,508.88,0.00012335,2]
[400077729,1767073061815,1017.75,0.00012923,2]
[400077730,1767073082918,300.0,0.0001297,2]
[400077731,1767073092663,1200.0,0.0001297,2]
[400077732,1767073112444,200.0,0.00028,120]
[400077735,1767073130340,200.0,0.000284,120]
[400077736,1767073141175,489.45,0.00012328,2]
[400077737,1767073141617,978.89,0.00012915,2]
[400077738,1767073142395,300.0,0.0001297,2]
[400077739,1767073201734,300.0,0.0001297,2]
[400077740,1767073202285,300.0,0.0001297,2]
[400077741,1767073203495,300.0,0.0001297,2]
[400077742,1767073220211,470.76,0.00012547,2]
[400077743,1767073263475,300.0,0.0001297,2]
[400077744,1767073300095,464.77,0.00012562,2]
[400077745,1767073303064,171.395,0.00012711,2]
[400077746,1767073303159,182.73074953,0.00012711,2]
[400077747,1767073323125,300.0,0.0001297,2]
[400077748,1767073380021,458.85,0.00012536,2]
[400077749,1767073382709,300.0,0.0001297,2]
[400077750,1767073388638,536.90152656,0.00012871,2]
[400077751,1767073442370,300.0,0.0001297,2]
[400077752,1767073460219,453.01,0.00012274,2]
[400077753,1767073460629,906.03,0.00012858,2]
[400077754,1767073471759,500.0,0.0001297,2]
[400077755,1767073471825,487.22272391,0.0001297,2]
[400077756,1767073471848,12.77727609,0.0001297,2]
[400077757,1767073471896,268.05869991,0.0001297,2]
[400077758,1767073471927,500.0,0.0001297,2]
[400077759,1767073472192,224.88788583,0.0001297,2]
[400077760,1767073472226,500.0,0.0001297,2]
[400077761,1767073472320,500.0,0.0001297,2]
[400077762,1767073472668,500.0,0.0001297,2]
[400077763,1767073472708,461.14101595,0.0001297,2]
[400077764,1767073472737,500.0,0.0001297,2]
[400077765,1767073501323,300.0,0.0001297,2]
[400077766,1767073502576,300.0,0.0001297,2]
[400077767,1767073519450,830.72975587,0.000129,2]
[400077769,1767073538920,435.72,0.00012281,2]
[400077770,1767073539331,871.43,0.00012866,2]
[400077772,1767073562634,300.0,0.0001297,2]
[400077773,1767073617747,419.08,0.0001227,2]
[400077774,1767073618149,838.16,0.00012854,2]
[400077775,1767073622482,300.0,0.0001297,2]
[400077816,1767073680585,1938.02536635,0.00012871,2]
[400077817,1767073680611,10000.01,0.00012871,2]
[400077818,1767073680638,10000.01,0.00012871,2]
[400077819,1767073680666,10000.01,0.00012871,2]
[400077820,1767073685780,-300.0,0.0001287,2]
[400077821,1767073690586,-1120.51419632,0.00012871,2]
[400077822,1767073697293,403.08,0.00012268,2]
[400077823,1767073697667,806.16,0.00012852,2]
[400077824,1767073712173,537.64108994,0.0001287,2]
[400077825,1767073712208,500.0,0.0001287,2]
[400077826,1767073712258,257.42152008,0.0001287,2]
[400077827,1767073712402,500.0,0.0001287,2]
[400077828,1767073712438,500.0,0.0001287,2]
[400077829,1767073712598,500.0,0.0001287,2]
[400077830,1767073742719,300.0,0.0001287,2]
[400077831,1767073775992,387.69,0.00012716,2]
[400077832,1767073801401,300.0,0.0001287,2]
[400077833,1767073802540,300.0,0.0001287,2]
[400077870,1767073832463,-398.0,0.00012871,2]
[400077939,1767073838511,-6562.55065489,0.00012871,2]
[400077941,1767073838523,-45649.51192118,0.00012871,2]
[400077943,1767073838536,-4249.67009274,0.00012871,2]
[400077945,1767073838548,-14591.83892873,0.00012871,2]
[400077947,1767073838559,-17436.23488529,0.00012871,2]
[400077948,1767073838571,-3263.64102344,0.00012871,2]
[400077949,1767073838582,-136937.07758994,0.00012871,2]
[400077950,1767073838592,-602.0,0.00012871,2]
[400077951,1767073838602,-239.71352245,0.00012921,2]
[400077952,1767073838611,-500.0,0.00012999,2]
[400077953,1767073838621,-500.0,0.00012999,2]
[400077954,1767073838631,-500.0,0.00013136,2]
[400077955,1767073838641,-500.0,0.00013136,2]
[400077956,1767073838651,-300.0,0.00013229,2]
[400077957,1767073838661,-300.0,0.00013229,2]
[400077958,1767073838670,-300.0,0.00013229,2]
[400077959,1767073838679,-300.0,0.00013229,2]
[400077960,1767073838689,-300.0,0.00013229,2]
[400077961,1767073838699,-300.0,0.00013229,2]
[400077962,1767073838708,-300.0,0.00013229,2]
[400077963,1767073838718,-300.0,0.00013229,2]
[400077964,1767073838728,-300.0,0.00013229,2]
[400077965,1767073838737,-300.0,0.00013229,2]
[400077966,1767073838747,-300.0,0.00013229,2]
[400077967,1767073838756,-300.0,0.00013229,2]
[400077968,1767073838766,-300.0,0.00013229,2]
[400077969,1767073838775,-300.0,0.00013229,2]
[400077970,1767073838785,-300.0,0.00013229,2]
[400077971,1767073838795,-600.0,0.00013229,2]
[400077972,1767073838804,-7610.47702556,0.00013229,2]
[400077973,1767073838813,-500.0,0.00013273,2]
[400077974,1767073838823,-500.0,0.00013273,2]
[400077975,1767073838832,-500.0,0.00013273,2]
[400077976,1767073838842,-500.0,0.00013273,2]
[400077977,1767073838852,-500.0,0.00013273,2]
[400077978,1767073838861,-500.0,0.00013273,2]
[400077979,1767073838871,-217.77534712,0.00013273,2]
[400077980,1767073838881,-283.15409111,0.00013273,2]
[400077981,1767073838891,-500.0,0.00013273,2]
[400077982,1767073838900,-500.0,0.00013273,2]
[400077983,1767073838910,-500.15325233,0.00013273,2]
[400077984,1767073838919,-165.40870093,0.00013273,2]
[400077985,1767073838929,-500.0,0.00013273,2]
[400077986,1767073838938,-500.0,0.00013273,2]
[400077987,1767073838947,-500.0,0.00013273,2]
[400077988,1767073838957,-500.0,0.00013273,2]
[400077989,1767073838966,-605.28720895,0.00013273,2]
[400077990,1767073838975,-500.0,0.00013273,2]
[400077991,1767073838985,-500.0,0.00013273,2]
[400077992,1767073838995,-500.0,0.00013273,2]
[400077993,1767073839004,-500.0,0.00013273,2]
[400077994,1767073839014,-500.0,0.00013273,2]
[400077995,1767073839023,-500.0,0.00013273,2]
[400077996,1767073839032,-500.0,0.00013273,2]
[400077997,1767073839041,-500.0,0.00013273,2]
[400077998,1767073839050,-500.0,0.00013273,2]
[400077999,1767073839059,-500.0,0.00013273,2]